{"text_format":"2","workbook":"xlsx","n_sheets":1,"sheets":["Tabelle1"],"not_rendered":{"charts":0,"images":0,"macros":0,"external_links":0,"defined_names":0,"comments":0,"pivot_tables":0},"unopened":[],"bounds":{"document_bytes":16777216,"sheet_cells":100000,"run_cost":"one","rows_first":2000,"rows_last":500,"rows_between":2000,"halvings":0,"cell_chars":16384,"cell_head_chars":4096},"cells_cut":0,"cells_raw":0,"read":"whole","date_system":"1900"}

{"sheet":"Tabelle1","index":0,"n_rows":224,"n_cols":5,"rows_kept":224,"cut":false,"hidden":false,"merged":[[12,0,12,3],[15,0,15,3],[31,0,31,3],[47,0,47,3],[64,1,64,3],[67,0,67,3],[83,0,83,3],[99,0,99,3],[116,1,116,3],[119,0,119,3],[135,0,135,3],[151,0,151,3],[168,1,168,3],[171,0,171,3],[187,0,187,3],[203,0,203,3],[220,1,220,3],[223,1,223,3]]}
[null,"Achtung: "]
[null,"Bitte füllen Sie das Formular aus. Nach Prüfung der Daten speichern Sie die Vorlage bitte als Excel und pdf und laden beide Dokumente im BIH-Antragsportal hoch."]
[null,"Beim Ausfüllen der Vorlage achten Sie bitte darauf, das Budget entsprechend der beteiligten Einrichtungen der Berlin University Alliance einzutragen. "]
[null,"Budgetgrenzen: Es können mindestens 25.000 Euro und maximal 150.000 Euro pro Jahr beantragt werden. Kürzeste Laufzeit für Projekte ist 1 Jahr, maximale 2 Jahre. "]
[]
["Pflichtfeld"]
["Projekttitel","Towards open and FAIR hardware "]
["Hauptantragsteller*in","Prof. Dr.-Ing. Roland Jochem"]
["Verbund-Einrichtung","TU BERLIN"]
["Gewünschter Starttermin ","(01/06/2021)"]
["Geplante Laufzeit in Monaten",24]
[]
["Verteilung der beantragten Mittel auf die Einrichtungen der Berlin University Alliance"]
[]
["Freie Universität Berlin ",2021,2022,2023]
["Antragsteller*in 1 (TIM Landgraf)"]
["Sachkosten ",null,null,null,"Erläuterungen"]
["Open Access-Gebühren",null,1500]
["Veranstaltungen"]
["Werkverträge"]
["Reisekosten",null,500,500]
["Weitere SK",null,null,null,"Bitte definieren Sie die Ausgabe"]
["Gesamt Sachkosten",{"$f":"SUM(B18:B22)","v":0},{"$f":"SUM(C18:C22)","v":2000},{"$f":"SUM(D18:D22)","v":500}]
["Eingruppierung Personal"]
["E9-12, Stellenumfang bitte hier eintragen"]
["E13, Stellenumfang bitte hier eintragen",18125,36250,18125]
["E14-15, Stellenumfang bitte hier eintragen "]
["Personalkosten SHK",2250,4500,2250]
["Gesamt Personalkosten",{"$f":"SUM(B25:B28)","v":20375},{"$f":"SUM(C25,C26,C27,C28)","v":40750},{"$f":"SUM(D25:D28)","v":20375}]
["Gesamt 1",{"$f":"SUM(B23,B29)","v":20375},{"$f":"SUM(C23,C29)","v":42750},{"$f":"SUM(D23,D29)","v":20875}]
[]
["Antragsteller*in 2 (bitte Name einsetzen)"]
["Sachkosten ",null,null,null,"Erläuterungen"]
["Open Access-Gebühren"]
["Veranstaltungen"]
["Werkverträge"]
["Reisekosten"]
["Weitere SK",null,null,null,"Bitte definieren Sie die Ausgabe"]
["Gesamt Sachkosten",{"$f":"SUM(B34:B38)","v":0},{"$f":"SUM(C34:C38)","v":0},{"$f":"SUM(D34:D38)","v":0}]
["Personalkosten"]
["E9-12, Stellenumfang bitte hier eintragen"]
["E13, Stellenumfang bitte hier eintragen"]
["E14-15, Stellenumfang bitte hier eintragen"]
["Personalkosten SHK"]
["Gesamt Personalkosten",{"$f":"SUM(B41:B44)","v":0},{"$f":"SUM(C41:C44)","v":0},{"$f":"SUM(D41:D44)","v":0}]
["Gesamt 2",{"$f":"SUM(B39,B45)","v":0},{"$f":"SUM(C39,C45)","v":0},{"$f":"SUM(D39,D45)","v":0}]
[]
["Antragsteller*in 3 (bitte Name einsetzen)"]
["Sachkosten ",null,null,null,"Erläuterungen"]
["Open Access-Gebühren"]
["Veranstaltungen"]
["Werkverträge"]
["Reisekosten"]
["Weitere SK",null,null,null,"Bitte definieren Sie die Ausgabe"]
["Gesamt Sachkosten",{"$f":"SUM(B50:B54)","v":0},{"$f":"SUM(C50:C54)","v":0},{"$f":"SUM(D50:D54)","v":0}]
["Personalkosten"]
["E9-12, Stellenumfang bitte hier eintragen"]
["E13, Stellenumfang bitte hier eintragen"]
["E14-15, Stellenumfang bitte hier eintragen"]
["Personalkosten SHK"]
["Gesamt Personalkosten",{"$f":"SUM(B57:B60)","v":0},{"$f":"SUM(C57:C60)","v":0},{"$f":"SUM(D57:D60)","v":0}]
["Gesamt 3",{"$f":"SUM(B55,B61)","v":0},{"$f":"SUM(C55,C61)","v":0},{"$f":"SUM(D55,D61)","v":0}]
[]
["Gesamtbudget Freie Universität nach Jahr",{"$f":"SUM(B30,B46,B62)","v":20375},{"$f":"SUM(C30,C46,C62)","v":42750},{"$f":"SUM(D30,D46,D62)","v":20875}]
["Gesamtbudget Freie Universität nach Laufzeit",{"$f":"SUM(B64,C64,D64)","v":84000}]
[]
["Humboldt-Universität zu Berlin",2021,2022,2023]
["Antragsteller*in 1 (MATTHEW LARKUM)"]
["Sachkosten ",null,null,null,"Erläuterungen"]
["Open Access-Gebühren",null,null,1500]
["Veranstaltungen",null,null,8000,"International conference: 3500 Reise und aufenthalts-kosten für speaker und studenten, 3500 catering, 1000 materialien, "]
["Werkverträge"]
["Reisekosten",null,500,500]
["Weitere SK",1500,500,500,"Online presence: server and corporate design"]
["Gesamt Sachkosten",{"$f":"SUM(B70:B74)","v":1500},{"$f":"SUM(C70:C74)","v":1000},{"$f":"SUM(D70:D74)","v":10500}]
["Personalkosten"]
["E9-12, Stellenumfang bitte hier eintragen"]
["E13, 50%",null,18000,18000]
["E14-15, 35%",10500,21000,10500]
["Personalkosten SHK",1500,3000,1500]
["Gesamt Personalkosten",{"$f":"SUM(B77:B80)","v":12000},{"$f":"SUM(C77:C80)","v":42000},{"$f":"SUM(D77:D80)","v":30000}]
["Gesamt 1",{"$f":"SUM(B75,B81)","v":13500},{"$f":"SUM(C75,C81)","v":43000},{"$f":"SUM(D75,D81)","v":40500}]
[]
["Antragsteller*in 2 (bitte Name einsetzen)"]
["Sachkosten ",null,null,null,"Erläuterungen"]
["Open Access-Gebühren"]
["Veranstaltungen"]
["Werkverträge"]
["Reisekosten"]
["Weitere SK",null,null,null,"Bitte definieren Sie die Ausgabe"]
["Gesamt Sachkosten",{"$f":"SUM(B86:B90)","v":0},{"$f":"SUM(C86:C90)","v":0},{"$f":"SUM(D86:D90)","v":0}]
["Personalkosten"]
["E9-12, Stellenumfang bitte hier eintragen"]
["E13, Stellenumfang bitte hier eintragen"]
["E14-15, Stellenumfang bitte hier eintragen"]
["Personalkosten SHK"]
["Gesamt Personalkosten",{"$f":"SUM(B93:B96)","v":0},{"$f":"SUM(C93:C96)","v":0},{"$f":"SUM(D93:D96)","v":0}]
["Gesamt 2",{"$f":"SUM(B91,B97)","v":0},{"$f":"SUM(C91,C97)","v":0},{"$f":"SUM(D91,D97)","v":0}]
[]
["Antragsteller*in 3 (bitte Name einsetzen)"]
["Sachkosten ",null,null,null,"Erläuterungen"]
["Open Access-Gebühren"]
["Veranstaltungen"]
["Werkverträge"]
["Reisekosten"]
["Weitere SK",null,null,null,"Bitte definieren Sie die Ausgabe"]
["Gesamt Sachkosten",{"$f":"SUM(B102:B106)","v":0},{"$f":"SUM(C102:C106)","v":0},{"$f":"SUM(D102:D106)","v":0}]
["Personalkosten"]
["E9-12, Stellenumfang bitte hier eintragen"]
["E13, Stellenumfang bitte hier eintragen"]
["E14-15, Stellenumfang bitte hier eintragen"]
["Personalkosten SHK"]
["Gesamt Personalkosten",{"$f":"SUM(B109:B112)","v":0},{"$f":"SUM(C109:C112)","v":0},{"$f":"SUM(D109:D112)","v":0}]
["Gesamt 3",{"$f":"SUM(B107,B113)","v":0},{"$f":"SUM(C107,C113)","v":0},{"$f":"SUM(D107,D113)","v":0}]
[]
["Gesamtbudget Humboldt-Universität nach Jahr",{"$f":"SUM(B82,B98,B114)","v":13500},{"$f":"SUM(C82,C98,C114)","v":43000},{"$f":"SUM(D82,D98,D114)","v":40500}]
["Gesamtbudget Humboldt-Universität nach Laufzeit",{"$f":"SUM(B116,C116,D116)","v":97000}]
[]
["Technische Universität Berlin",2021,2022,2023]
["Antragsteller*in 1 (Prof. Dr.-Ing. Roland Jochem)"]
["Sachkosten ",null,null,null,"Erläuterungen"]
["Open Access-Gebühren",null,1500]
["Veranstaltungen",null,500,500]
["Werkverträge"]
["Reisekosten"]
["Weitere SK",null,null,null,"Bitte definieren Sie die Ausgabe"]
["Gesamt Sachkosten",{"$f":"SUM(B122:B126)","v":0},{"$f":"SUM(C122:C126)","v":2000},{"$f":"SUM(D122:D126)","v":500}]
["Personalkosten"]
["E9-12, Stellenumfang bitte hier eintragen"]
["E13, 75%",27000,54000,27000]
["E14-15, Stellenumfang bitte hier eintragen"]
["Personalkosten SHK",2250,4500,2250]
["Gesamt Personalkosten",{"$f":"SUM(B129:B132)","v":29250},{"$f":"SUM(C129:C132)","v":58500},{"$f":"SUM(D129:D132)","v":29250}]
["Gesamt 1",{"$f":"SUM(B127,B133)","v":29250},{"$f":"SUM(C127,C133)","v":60500},{"$f":"SUM(D127,D133)","v":29750}]
[]
["Antragsteller*in 2 (bitte Name einsetzen)"]
["Sachkosten ",null,null,null,"Erläuterungen"]
["Open Access-Gebühren"]
["Veranstaltungen"]
["Werkverträge"]
["Reisekosten"]
["Weitere SK",null,null,null,"Bitte definieren Sie die Ausgabe"]
["Gesamt Sachkosten",{"$f":"SUM(B138:B142)","v":0},{"$f":"SUM(C138:C142)","v":0},{"$f":"SUM(D138:D142)","v":0}]
["Personalkosten"]
["E9-12, Stellenumfang bitte hier eintragen"]
["E13, Stellenumfang bitte hier eintragen"]
["E14-15, Stellenumfang bitte hier eintragen"]
["Personalkosten SHK"]
["Gesamt Personalkosten",{"$f":"SUM(B145:B148)","v":0},{"$f":"SUM(C145:C148)","v":0},{"$f":"SUM(D145:D148)","v":0}]
["Gesamt 2",{"$f":"SUM(B143,B149)","v":0},{"$f":"SUM(C143,C149)","v":0},{"$f":"SUM(D143,D149)","v":0}]
[]
["Antragsteller*in 3 (bitte Name einsetzen)"]
["Sachkosten ",null,null,null,"Erläuterungen"]
["Open Access-Gebühren"]
["Veranstaltungen"]
["Werkverträge"]
["Reisekosten"]
["Weitere SK",null,null,null,"Bitte definieren Sie die Ausgabe"]
["Gesamt Sachkosten",{"$f":"SUM(B154:B158)","v":0},{"$f":"SUM(C154:C158)","v":0},{"$f":"SUM(D154:D158)","v":0}]
["Personalkosten"]
["E9-12, Stellenumfang bitte hier eintragen"]
["E13, Stellenumfang bitte hier eintragen"]
["E14-15, Stellenumfang bitte hier eintragen"]
["Personalkosten SHK"]
["Gesamt Personalkosten",{"$f":"SUM(B161:B164)","v":0},{"$f":"SUM(C161:C164)","v":0},{"$f":"SUM(D161:D164)","v":0}]
["Gesamt 3",{"$f":"SUM(B159,B165)","v":0},{"$f":"SUM(C159,C165)","v":0},{"$f":"SUM(D159,D165)","v":0}]
[]
["Gesamtbudget Technische Universität nach Jahr",{"$f":"SUM(B134,B150,B166)","v":29250},{"$f":"SUM(C134,C150,C166)","v":60500},{"$f":"SUM(D134,D150,D166)","v":29750}]
["Gesamtbudget Technische Universität nach Laufzeit",{"$f":"SUM(B168,C168,D168)","v":119500}]
[]
["Charité - Universitätsmedizin Berlin ",2021,2022,2023]
["Antragsteller*in 1 (bitte Name einsetzen)"]
["Sachkosten ",null,null,null,"Erläuterungen"]
["Open Access-Gebühren"]
["Veranstaltungen"]
["Werkverträge"]
["Reisekosten"]
["Weitere SK",null,null,null,"Bitte definieren Sie die Ausgabe"]
["Gesamt Sachkosten",{"$f":"SUM(B174:B178)","v":0},{"$f":"SUM(C174:C178)","v":0},{"$f":"SUM(D174:D178)","v":0}]
["Personalkosten"]
["E9-12, Stellenumfang bitte hier eintragen"]
["E13, Stellenumfang bitte hier eintragen"]
["E14-15, Stellenumfang bitte hier eintragen"]
["Personalkosten SHK"]
["Gesamt Personalkosten",{"$f":"SUM(B181:B184)","v":0},{"$f":"SUM(C181:C184)","v":0},{"$f":"SUM(D181:D184)","v":0}]
["Gesamt 1",{"$f":"SUM(B179,B185)","v":0},{"$f":"SUM(C179,C185)","v":0},{"$f":"SUM(D179,D185)","v":0}]
[]
["Antragsteller*in 2 (bitte Name einsetzen)"]
["Sachkosten ",null,null,null,"Erläuterungen"]
["Open Access-Gebühren"]
["Veranstaltungen"]
["Werkverträge"]
["Reisekosten"]
["Weitere SK",null,null,null,"Bitte definieren Sie die Ausgabe"]
["Gesamt Sachkosten",{"$f":"SUM(B190:B194)","v":0},{"$f":"SUM(C190:C194)","v":0},{"$f":"SUM(D190:D194)","v":0}]
["Personalkosten"]
["E9-12, Stellenumfang bitte hier eintragen"]
["E13, Stellenumfang bitte hier eintragen"]
["E14-15, Stellenumfang bitte hier eintragen"]
["Personalkosten SHK"]
["Gesamt Personalkosten",{"$f":"SUM(B197:B200)","v":0},{"$f":"SUM(C197:C200)","v":0},{"$f":"SUM(D197:D200)","v":0}]
["Gesamt 2",{"$f":"SUM(B195,B201)","v":0},{"$f":"SUM(C195,C201)","v":0},{"$f":"SUM(D195,D201)","v":0}]
[]
["Antragsteller*in 3 (bitte Name einsetzen)"]
["Sachkosten ",null,null,null,"Erläuterungen"]
["Open Access-Gebühren"]
["Veranstaltungen"]
["Werkverträge"]
["Reisekosten"]
["Weitere SK",null,null,null,"Bitte definieren Sie die Ausgabe"]
["Gesamt Sachkosten",{"$f":"SUM(B206:B210)","v":0},{"$f":"SUM(C206:C210)","v":0},{"$f":"SUM(D206:D210)","v":0}]
["Personalkosten"]
["E9-12, Stellenumfang bitte hier eintragen"]
["E13, Stellenumfang bitte hier eintragen"]
["E14, Stellenumfang bitte hier eintragen"]
["Personalkosten SHK"]
["Gesamt Personalkosten",{"$f":"SUM(B213:B216)","v":0},{"$f":"SUM(C213:C216)","v":0},{"$f":"SUM(D213:D216)","v":0}]
["Gesamt 3",{"$f":"SUM(B211,B217)","v":0},{"$f":"SUM(C211,C217)","v":0},{"$f":"SUM(D211,D217)","v":0}]
[]
["Gesamtbudget Charité nach Jahr",{"$f":"SUM(B186,B202,B218)","v":0},{"$f":"SUM(C186,C202,C218)","v":0},{"$f":"SUM(D186,D202,D218)","v":0}]
["Gesamtbudget Charité nach Laufzeit",{"$f":"SUM(B220,C220,D220)","v":0}]
[]
["Gesamtbudget über alle Einrichtungen / Jahr",{"$f":"SUM(B64,B116,B168,B220)","v":63125},{"$f":"SUM(C64,C116,C168,C220)","v":146250},{"$f":"SUM(D64,D116,D168,D220)","v":91125}]
["Gesamtbudget über alle Einrichtungen / Laufzeit",{"$f":"SUM(B223,C223,D223)","v":300500}]